[Event "10th Cherry Blossom Classic 2023"]
[Site "Dulles"]
[Date "2023.05.27"]
[Round "3.11"]
[White "Williams, Justus"]
[Black "Tanenbaum, Zachary"]
[Result "0-1"]
[ECO "A09"]
[WhiteElo "2396"]
[BlackElo "2261"]
[Annotator "TA"]
[PlyCount "116"]
[EventDate "2023.05.24"]
[EventType "swiss"]
[EventCountry "USA"]
[SourceTitle "playchess.com"]
[Source "ChessBase"]
[SourceQuality "1"]
[TimeControl "5400+30"]

{[%evp 9,116,-32,-18,-24,-28,-18,-5,-14,-6,-16,-19,-10,-19,-44,0,0,0,0,0,0,6,-15,-7,-20,29,0,13,23,17,31,42,0,0,0,0,0,0,0,8,-53,-38,-55,-51,-48,-54,-64,-18,-37,-41,-43,-39,-33,-31,-66,0,0,0,-33,0,0,0,-11,0,0,0,0,0,0,0,0,0,0,0,0,0,0,0,-37,0,-50,0,0,0,0,0,0,0,0,0,-8,-8,-8,-8,-8,-8,-8,-8,-29971,-29973,-29967,-29970,-29978,-29980,-29991,-29992,-29996,-29997,-29997,-313]} 1. Nf3 {[%emt 0:00:33]} d5 {[%emt 0:01:19]} 2. c4 {[%emt 0:00:23]} d4 {[%emt 0:00:10]} 3. b4 {[%emt 0:00:22]} c5 {[%emt 0:00:09]} 4. bxc5 {[%emt 0:00:59]} Nc6 {[%emt 0:00:08]} 5. d3 {[%emt 0:00:54]} e5 {[%emt 0:00:11]} 6. g3 {[%emt 0:00:42] A09: Réti Opening: 1 Nf3 d5 2 c4.} Bxc5 {[%emt 0:00:17]} 7. Bg2 {[%emt 0:00:15]} h6 {[%emt 0:01:59]} 8. Nbd2 {[%emt 0:02:55] The position is equal.} Nf6 {[%emt 0:01:05]} 9. Rb1 {[%emt 0:00:51]} O-O {[%emt 0:00:39]} 10. O-O {[%emt 0:00:36]} Rb8 {[%emt 0:08:35] [#]} 11. Ne1 $146 {[%emt 0:06:59]} ({Predecessor:} 11. Ng5 hxg5 12. Bxc6 Bh3 13. Bg2 Bxg2 14. Kxg2 g4 15. Nb3 Be7 16. Bg5 Nd7 17. Bd2 {0-1 Melendez Arce,C (1632)-Cabezas Solano,D (1962) San Jose Picado 2021 (7)}) 11... Bf5 {[%emt 0:00:36]} ({Better is} 11... Bg4 $15) 12. f4 $11 {[%emt 0:04:12]} exf4 {[%emt 0:04:47]} 13. Nb3 {[%emt 0:00:45]} Bd6 {[%emt 0:06:45]} 14. Bxf4 {[%emt 0:01:02]} Bg4 {[%emt 0:02:45]} 15. Bxd6 {[%emt 0:11:44]} Qxd6 {[%emt 0:00:02]} 16. Nc2 {[%emt 0:00:51]} Qe5 {[%emt 0:08:33]} (16... Rbe8 $142 17. Rf2 Bd7) 17. Rf2 {[%emt 0:02:02]} Rbd8 {[%emt 0:02:42]} 18. Qd2 {[%emt 0:02:15]} Rfe8 {[%emt 0:05:31]} 19. Re1 {[%emt 0:04:27]} Qh5 {[%emt 0:40:45]} 20. Rf4 {[%emt 0:08:52][%cal Rc2d4]} Rxe2 {[%emt 0:01:41]} 21. Rxe2 {[%emt 0:02:00]} Bxe2 {[%emt 0:00:02]} 22. Ncxd4 {[%emt 0:05:33]} Nxd4 {[%emt 0:01:00]} 23. Nxd4 {[%emt 0:00:16]} Bg4 {[%emt 0:10:26]} 24. Nb3 {[%emt 0:01:44]} (24. Bxb7 $11 Qc5 25. Bg2) 24... b6 $15 {[%emt 0:01:49]} 25. d4 {[%emt 0:00:10]} Re8 {[%emt 0:00:25]} 26. Nc1 {[%emt 0:02:49] Repels Re2} Qg5 {[%emt 0:00:28] aiming for ...Nh5.} 27. Qc3 {[%emt 0:11:09]} Nh5 {[%emt 0:00:35] Black is more active.} (27... Bf5 $15) 28. Re4 {[%emt 0:00:51]} Rxe4 {[%emt 0:00:25]} 29. Bxe4 {[%emt 0:00:04]} Nf6 {[%emt 0:00:25]} 30. Bg2 {[%emt 0:00:18]} Qf5 {[%emt 0:00:42]} 31. Nd3 {[%emt 0:00:27]} Ne4 {[%emt 0:00:21]} ({Black should play} 31... Be2 $1 $15 32. Nc1 (32. Nf4 Qb1+ 33. Kf2 Bd1 $17) 32... Bg4) 32. Qe1 $1 $11 {[%emt 0:00:40]} Ng5 {[%emt 0:00:38]} 33. Qe3 {[%emt 0:02:48]} Bh3 {[%emt 0:00:32]} 34. Bxh3 {[%emt 0:03:45]} Qxh3 {[%emt 0:00:15][%mdl 4096] Endgame KQN-KQN} 35. Nf2 {[%emt 0:12:31]} Qf5 {[%emt 0:00:03]} 36. Kg2 {[%emt 0:00:22]} Ne6 {[%emt 0:01:06]} 37. d5 {[%emt 0:01:29]} Nc5 {[%emt 0:00:08]} 38. g4 {[%emt 0:01:22]} Qf6 {[%emt 0:00:18]} 39. h4 {[%emt 0:01:26]} Kf8 {[%emt 0:00:17]} 40. Qg3 {[%emt 0:00:26]} Ke7 {[%emt 0:01:22]} 41. Qc7+ {[%emt 0:00:12]} Nd7 $1 {[%emt 0:00:01]} 42. Qxa7 {[%emt 0:03:36]} Qxh4 {[%emt 0:00:13]} 43. Qc7 {[%emt 0:03:07]} Qg5 {[%emt 0:01:50]} 44. a4 {[%emt 0:00:53]} (44. Qg3 $11) 44... h5 {[%emt 0:00:00]} (44... Qe5 $15 45. Qc6 Qd4) 45. a5 {[%emt 0:02:01]} bxa5 {[%emt 0:00:00]} 46. Qxa5 {[%emt 0:00:02][%cal Od5d6] [#] Black must now prevent d6+!} Qe3 {[%emt 0:00:56]} 47. gxh5 {[%emt 0:00:23]} Qg5+ {[%emt 0:00:22]} 48. Kf1 {[%emt 0:00:04][%cal Od5d6] d6+! would be deadly.} Qc1+ {[%emt 0:00:07]} 49. Ke2 {[%emt 0:00:17]} Qxc4+ {[%emt 0:00:07]} 50. Ke3 {[%emt 0:00:53]} Nf6 {[%emt 0:01:22][%csl LRd5,LRh5]} 51. Qa7+ {[%emt 0:00:34]} Kd6 {[%emt 0:00:09]} 52. Qxf7 {[%emt 0:00:19] Hoping for Qe6+.} Nxd5+ {[%emt 0:00:10]} 53. Kf3 $2 {[%emt 0:00:28][%mdl 8192] [#] This costs White the game.} (53. Kd2 $11) 53... Qb3+ {[%emt 0:00:09] Black mates.} 54. Nd3 {[%emt 0:00:48]} Qxd3+ {[%emt 0:00:01]} 55. Kg4 {[%emt 0:00:13]} Nf6+ {[%emt 0:01:23]} 56. Kf4 {[%emt 0:01:22]} Qf1+ {[%emt 0:00:20]} 57. Kg5 {[%emt 0:00:03]} Qg2+ {[%emt 0:00:16]} 58. Kf4 {[%emt 0:00:04]} Qf2+ {[%emt 0:00:08] Weighted Error Value: White=0.18 (very precise) /Black=0.08 (flawless)} 0-1

[Event "10th Cherry Blossom Classic 2023"]
[Site "Dulles"]
[Date "2023.05.27"]
[Round "3.12"]
[White "Senft, Sean"]
[Black "Matviishen, Viktor"]
[Result "0-1"]
[ECO "B14"]
[WhiteElo "2089"]
[BlackElo "2538"]
[Annotator "TA"]
[PlyCount "88"]
[EventDate "2023.05.24"]
[EventType "swiss"]
[EventCountry "USA"]
[SourceTitle "playchess.com"]
[Source "ChessBase"]
[SourceQuality "1"]
[TimeControl "5400+30"]

{[%evp 13,88,0,0,-1,-11,-11,-3,0,5,0,0,0,2,-2,6,7,129,45,37,0,0,-6,0,0,0,0,0,-9,0,0,0,-8,-6,-6,0,-216,-210,-1026,-1004,-914,-161,-169,-143,-201,-136,-182,-168,-237,-191,-184,-188,-285,-184,-184,-184,-184,-184,-195,-195,-191,-191,-191,-184,-198,-191,-232,-232,-275,-275,-506,-487,-475,-449,-29981,-29982,-29984,-29985]} 1. c4 {[%emt 0:02:27]} Nf6 {[%emt 0:00:43]} 2. d4 {[%emt 0:00:07]} g6 {[%emt 0:00:07]} 3. Nc3 {[%emt 0:00:10]} d5 {[%emt 0:00:05]} 4. Bg5 {[%emt 0:00:23]} Bg7 {[%emt 0:02:29]} 5. e3 {[%emt 0:00:36]} c5 {[%emt 0:01:43]} 6. Nf3 {[%emt 0:04:26]} cxd4 {[%emt 0:02:11]} 7. exd4 {[%emt 0:02:13]} Ne4 {[%emt 0:00:25]} 8. Be3 {[%emt 0:03:26] B14: Caro-Kann: Panov-Botvinnik Attack with 5...e6 and 5...g6.} (8. Nxd5 $2 Nxg5 9. Nxg5 e6 10. Nxf7 (10. Qa4+ $2 Bd7 $19) 10... Kxf7 11. Qf3+ Kg8 $19) 8... Nxc3 {[%emt 0:01:38]} 9. bxc3 {[%emt 0:00:06]} dxc4 {[%emt 0:00:05]} 10. Bxc4 {[%emt 0:01:16] [#] The position is equal.} O-O $146 {[%emt 0:01:03]} ({Predecessor:} 10... Nc6 11. O-O O-O 12. Rc1 Bg4 13. h3 Bxf3 14. Qxf3 e5 15. Rfd1 Rc8 16. d5 Na5 {0-1 Sochor,S (2045)-Pisk,P (2250) Litomysl op 1994}) 11. Qd2 {[%emt 0:05:09]} Nc6 {[%emt 0:03:12]} 12. O-O {[%emt 0:01:17]} Bg4 {[%emt 0:05:53]} 13. Ng5 {[%emt 0:08:17]} (13. Be2 {simplifies} Na5 14. Rfe1 Rc8 15. Bg5) 13... e5 {[%emt 0:01:56][%cal Re5d4]} 14. h3 {[%emt 0:05:10]} exd4 {[%emt 0:05:44] [#]} (14... Bf5 $11) 15. cxd4 {[%emt 0:00:42]} (15. hxg4 dxe3 16. Qxe3 Ne5 $15) (15. Nxf7 $1 $16 Rxf7 16. Bxf7+ Kxf7 17. Bg5 (17. hxg4 dxe3 18. Qxe3 Qd7 $17)) 15... Bf5 $14 {[%emt 0:00:41]} 16. Rad1 {[%emt 0:01:57]} Rc8 {[%emt 0:00:38]} 17. Rfe1 {[%emt 0:13:09]} (17. g4 $5 Bd7 $8 18. Rc1 $11) 17... Na5 {[%emt 0:16:40]} 18. Bxf7+ {[%emt 0:02:53]} Rxf7 {[%emt 0:00:06]} 19. Nxf7 {[%emt 0:00:07]} Kxf7 {[%emt 0:00:08]} 20. Bg5 {[%emt 0:02:36]} Qd5 {[%emt 0:17:36]} 21. Re7+ {[%emt 0:02:17]} Kg8 {[%emt 0:00:09][%cal Oh7h6] Active counter play!} 22. Rde1 {[%emt 0:01:33]} Nc6 {[%emt 0:02:50][%cal Ba5c6,Bc6d4,Bd4e2][%mdl 32]} (22... Bxd4 $2 23. Bf6 Bxh3 24. gxh3 $18 (24. Bxd4 $2 Qxg2#)) 23. Rxb7 {[%emt 0:06:27]} Bd7 {[%emt 0:03:13] Some like it hot} (23... Bxd4 24. Bf6 Bd7 25. Rd1 $16) (23... Qxd4 {feels hotter.} 24. Qe2 Qd5 25. Rd1 Qe5) 24. Rbb1 $2 {[%emt 0:05:13] White is now going downhill.} (24. Qd3 $11) 24... Nxd4 $19 {[%emt 0:04:58]} ({And not} 24... Qxd4 25. Qxd4 Bxd4 26. Rb7 $15) ({Inferior is} 24... Bxd4 25. Rbd1 Rf8 26. Be3 Bxh3 27. gxh3 $11 (27. Bxd4 $2 Qxg2#)) 25. Be3 {[%emt 0:07:08] [#] White is weak on the light squares} (25. Kh2) 25... Bxh3 $1 {[%emt 0:10:53][%csl Gh3][%cal Rd5g2][%mdl 576] Deflection. This pair of bishops is nice.} 26. f3 {[%emt 0:04:16]} (26. f4 Rc2) 26... Be6 $2 {[%emt 0:02:07]} (26... Rc2 27. Qxc2 Nxc2) 27. Red1 {[%emt 0:02:38][%cal Re3d4]} Rd8 {[%emt 0:04:19]} 28. Qf2 {[%emt 0:05:34]} (28. Qe1 $17) 28... Qxa2 {[%emt 0:00:06][%cal Og7f6] ...Bf6! is the strong threat.} 29. Qh4 {[%emt 0:00:49] Repels Bf6} (29. Kh1 $17) 29... Ne2+ {[%emt 0:03:10]} 30. Kh1 {[%emt 0:00:07]} (30. Kh2 {was worth a try.} Rxd1 31. Rxd1) 30... Re8 {[%emt 0:01:26]} 31. Rb7 {[%emt 0:01:11] [#]} Bf7 $1 {[%emt 0:02:17]} 32. Bxa7 {[%emt 0:04:10]} (32. Rxa7 $2 {is the wrong capture.} Qb3 33. Rad7 Qxe3 $19) (32. Re7 $142) 32... h6 {[%emt 0:00:57]} 33. Re7 {[%emt 0:01:51]} Rxe7 {[%emt 0:03:18]} 34. Qxe7 {[%emt 0:00:07]} Nf4 {[%emt 0:00:12][%csl Gf4][%cal Ra2g2]} 35. Qd8+ {[%emt 0:02:48]} Kh7 {[%emt 0:00:01][%csl Gf4][%cal Ra2g2]} 36. Qd2 {[%emt 0:00:07]} Qxa7 {[%emt 0:00:18]} 37. Qxf4 {[%emt 0:00:04]} Qe7 {[%emt 0:00:22]} 38. Qd6 {[%emt 0:00:53]} Qg5 {[%emt 0:00:10] And now ...Be5 would win.} 39. Qd7 {[%emt 0:01:12]} Qf4 {[%emt 0:01:13] White must now prevent ...Be5.} 40. Kg1 {[%emt 0:00:55]} Be5 {[%emt 0:00:17]} 41. Qh3 $2 {[%emt 0:01:18]} (41. Qg4) 41... h5 {[%emt 0:00:46]} 42. Qd7 {[%emt 0:01:35]} Kg7 {[%emt 0:00:49]} 43. Qd2 {[%emt 0:00:58]} (43. Kf1 $19) 43... Qh2+ {[%emt 0:00:09]} 44. Kf1 {[%emt 0:00:10]} Bc4+ {[%emt 0:00:12] A cool game by Matviishen.   Weighted Error Value: White=0.58/Black=0.26 (precise)} 0-1

[Event "10th Cherry Blossom Classic 2023"]
[Site "Dulles"]
[Date "2023.05.27"]
[Round "3.13"]
[White "Prem, Pranav"]
[Black "Kiewra, Keaton"]
[Result "0-1"]
[ECO "A40"]
[WhiteElo "2061"]
[BlackElo "2352"]
[Annotator "TA"]
[PlyCount "208"]
[EventDate "2023.05.24"]
[EventType "swiss"]
[EventCountry "USA"]
[SourceTitle "playchess.com"]
[Source "ChessBase"]
[SourceQuality "1"]
[TimeControl "5400+30"]

{[%evp 13,208,35,56,12,26,20,59,36,62,54,49,56,53,40,114,112,127,60,141,143,152,163,185,177,176,102,97,108,121,128,231,229,264,281,264,193,208,212,187,168,195,194,196,175,188,179,221,152,229,229,232,226,226,202,207,0,0,0,393,384,408,304,303,312,308,302,293,298,435,430,439,430,542,377,371,200,187,193,173,180,237,227,256,253,244,247,243,247,235,249,214,231,481,464,391,275,479,472,507,526,297,108,78,90,112,113,128,90,72,52,52,52,52,52,52,52,52,8,8,0,0,0,0,-8,-8,-8,-8,-8,0,-8,-8,-8,0,-8,-8,-8,-8,-8,-8,-8,-8,-8,-8,-8,-8,-8,-8,-8,-8,-8,0,-8,-8,-8,-8,-8,-8,-1817,-1790,-1445,-1516,-1289,-1322,-29963,-29965,-29963,-29964,-29964,-29967,-29965,-29966,-29962,-29960,-5085,-29952,-29974,-29975,-29975,-29975,-29974,-12840,-29978,-29979,-29979,-29980,-29980,-29981,-29983,-29984,-29984,-29985,-29985,-29986,-29986,-29987,-29986,-29987]} 1. d4 {[%emt 0:00:57]} e6 {[%emt 0:04:22]} 2. c4 {[%emt 0:00:16]} b6 {[%emt 0:00:05]} 3. Nf3 {[%emt 0:01:33]} Bb7 {[%emt 0:00:15]} 4. g3 {[%emt 0:01:58]} Bb4+ {[%emt 0:01:07]} 5. Bd2 {[%emt 0:00:42]} Bxf3 {[%emt 0:00:15]} 6. exf3 {[%emt 0:00:08]} Bxd2+ {[%emt 0:01:09]} 7. Qxd2 {[%emt 0:04:29]} d5 {[%emt 0:02:33]} 8. Nc3 {[%emt 0:02:48] A40: Unusual replies to 1 d4.} Ne7 {[%emt 0:00:37]} 9. cxd5 {[%emt 0:14:43]} exd5 {[%emt 0:04:17]} 10. Bh3 {[%emt 0:08:55] White is slightly better.} O-O {[%emt 0:03:58]} 11. O-O {[%emt 0:00:22]} c6 {[%emt 0:04:46]} 12. Rac1 {[%emt 0:01:34]} Qd6 {[%emt 0:00:43]} 13. Ne2 {[%emt 0:05:24] [#]} c5 $146 {[%emt 0:01:06]} ({Better is} 13... Re8 $14) ({Predecessor:} 13... a5 14. Rc3 Na6 15. Rfc1 Nc7 16. Nf4 {½-½ Tibensky,R (2396)-Lipka,J (2441) SVK-chT1W 1213 2012 (5.1)}) 14. dxc5 $16 {[%emt 0:02:31]} bxc5 {[%emt 0:00:07]} 15. Rfd1 {[%emt 0:05:09]} (15. Nc3 $16) 15... Na6 {[%emt 0:04:48]} (15... Nbc6 $14) 16. Nc3 {[%emt 0:08:10]} Rfd8 {[%emt 0:00:39]} 17. Na4 {[%emt 0:06:29]} Nc6 {[%emt 0:04:35][%cal Be7c6,Bc6e5,Be5d3][%mdl 32]} 18. Bf1 {[%emt 0:07:40]} Ne5 {[%emt 0:04:57]} 19. Qe2 {[%emt 0:06:11]} ({White should play} 19. Qa5 $18 c4 20. Bxc4) 19... c4 {[%emt 0:01:27]} 20. b3 {[%emt 0:08:50][%cal Rb3c4]} Nd3 {[%emt 0:01:05]} 21. Rc3 {[%emt 0:03:11]} Re8 {[%emt 0:00:40]} (21... Qb4 $16) 22. Qd2 $18 {[%emt 0:02:50]} Ne5 {[%emt 0:07:16]} 23. f4 {[%emt 0:02:07]} (23. bxc4 $6 Qc6 $18) (23. Qxd5 $6 Qxd5 24. Rxd5 Nb4 $16) 23... Ng4 {[%emt 0:01:03]} 24. h3 {[%emt 0:01:39]} Nf6 {[%emt 0:00:40]} 25. Rxc4 {[%emt 0:00:22]} (25. bxc4 Ne4 26. Qxd5 Qxd5 27. cxd5 Nxc3 28. Nxc3 Nc5 $14) 25... Nc7 {[%emt 0:00:47][%cal Ba6c7,Bc7e6,Be6d4,Bd4f3][%mdl 32]} 26. Qb4 {[%emt 0:02:43]} Qd8 {[%emt 0:00:39]} 27. Rcc1 {[%emt 0:01:13]} Ne6 {[%emt 0:01:52]} 28. Bg2 {[%emt 0:00:35]} Rb8 {[%emt 0:01:42]} 29. Qd2 {[%emt 0:00:05]} Qe7 {[%emt 0:00:05]} 30. Qa5 {[%emt 0:00:30]} Rbd8 {[%emt 0:00:32]} (30... Qa3 $16) 31. Bxd5 {[%emt 0:01:08]} Nxd5 {[%emt 0:02:05]} 32. Rxd5 {[%emt 0:00:02]} Nd4 {[%emt 0:00:10]} 33. Rxd8 {[%emt 0:00:45]} Rxd8 {[%emt 0:00:07]} 34. Rf1 $2 {[%emt 0:00:55]} (34. Nc3 $1 $18) 34... Nf3+ $11 {[%emt 0:02:18]} 35. Kg2 {[%emt 0:00:15][%cal Oa4c5]} Rd3 $2 {[%emt 0:00:18][%mdl 8192]} (35... Nd2 $11 {and Black stays safe.} 36. Rc1 Qe4+ 37. Kg1 Nf3+ 38. Kf1 Nd2+ 39. Kg1 Nf3+ 40. Kf1 Nd2+ 41. Kg1) 36. Qb5 $18 {[%emt 0:00:45]} Qd8 {[%emt 0:01:31][%cal Od8a8]} 37. Nc5 {[%emt 0:00:17]} Qa8 {[%emt 0:03:10] ( -> ...Ne1+)} 38. Qb7 {[%emt 0:00:04]} (38. Qxd3 $2 Nh4+ 39. Kh2 Qg2#) 38... Qxb7 {[%emt 0:00:09]} 39. Nxb7 {[%emt 0:00:02][%mdl 4096] Endgame KRN-KRN} Nd4 {[%emt 0:00:18]} 40. Rc1 {[%emt 0:00:28][%cal Rc1c8]} Kf8 {[%emt 0:00:41]} (40... h6 $142 41. Na5 Rd2) 41. Rc8+ {[%emt 0:00:24]} Ke7 {[%emt 0:00:05]} 42. Rc7+ {[%emt 0:00:07]} Ke6 {[%emt 0:01:06]} 43. Nc5+ {[%emt 0:00:59]} Kd6 {[%emt 0:00:06]} 44. Nxd3 {[%emt 0:00:02]} (44. Rxf7 Kxc5 45. Rxg7 (45. Rxa7 g6 $18) 45... h6 46. Rxa7 Nb5 $18) (44. Na6 $142) 44... Kxc7 {[%emt 0:00:04] KN-KN} 45. f3 {[%emt 0:00:14]} Kd6 {[%emt 0:00:31]} 46. Kf2 {[%emt 0:01:10]} Kd5 {[%emt 0:00:06]} (46... g6 $142 47. Ne5 Ke6) 47. g4 {[%emt 0:00:35]} Nc2 {[%emt 0:00:32]} 48. Ne1 {[%emt 0:01:01]} Nb4 {[%emt 0:00:52][%cal Od5d4]} 49. a3 $1 {[%emt 0:00:17]} Nc6 {[%emt 0:00:11]} 50. Nc2 {[%emt 0:00:59]} Na5 {[%emt 0:00:09]} 51. Ne3+ {[%emt 0:00:35]} Kd4 {[%emt 0:00:34]} 52. b4 {[%emt 0:00:11]} Nc6 {[%emt 0:01:34]} (52... Nb7 53. Nf5+ Kc3) 53. Nf5+ {[%emt 0:00:39]} Kc3 {[%emt 0:01:58]} 54. Nd6 {[%emt 0:00:54]} Nd4 $2 {[%emt 0:01:12]} (54... Kb3 {is a better defense.} 55. b5 (55. Nxf7 Kxa3 56. b5 Nd4 $18) 55... Nd8) 55. Nxf7 {[%emt 0:00:28]} Kb3 {[%emt 0:00:16]} 56. Ne5 {[%emt 0:00:33]} Kxa3 {[%emt 0:00:35]} 57. f5 $2 {[%emt 0:00:29]} (57. Ke3 $18 {is more deadly.} Nc2+ 58. Ke4) 57... Kxb4 $16 {[%emt 0:00:17]} 58. Ke3 {[%emt 0:00:03]} Kc3 {[%emt 0:00:15] [#] ...a5 is the strong threat.} 59. Nd7 $1 {[%emt 0:00:42] Strongly threatening Ke4.} a5 {[%emt 0:03:06]} 60. Nb6 {[%emt 0:00:04] Threatens to win with h4.} Nc6 {[%emt 0:00:39]} 61. g5 {[%emt 0:00:21]} Kb4 {[%emt 0:00:12]} 62. f6 {[%emt 0:00:32]} gxf6 {[%emt 0:00:06]} 63. gxf6 {[%emt 0:00:01] And now f7 would win.} Nd8 {[%emt 0:00:19]} 64. Kd4 {[%emt 0:00:50]} Kb5 {[%emt 0:00:27]} 65. Nd5 {[%emt 0:00:42]} (65. Nc4 $5 {[%cal Rc4a5]} a4 66. Kd5 $14 (66. Nd6+ Kc6 $11)) 65... Kc6 {[%emt 0:00:13]} 66. Ke5 {[%emt 0:01:10]} Nf7+ {[%emt 0:00:49]} 67. Ke6 {[%emt 0:00:03]} Ng5+ {[%emt 0:00:40]} 68. Ke5 {[%emt 0:00:14]} Nxf3+ {[%emt 0:00:59]} 69. Ke6 {[%emt 0:00:39]} (69. Ke4 $5 Ng5+ $8 70. Ke5 $11) 69... Ng5+ {[%emt 0:00:31]} 70. Ke5 {[%emt 0:00:06]} Kd7 {[%emt 0:00:23]} 71. Nb6+ {[%emt 0:01:25]} Ke8 {[%emt 0:00:17]} 72. h4 {[%emt 0:00:07]} Nf7+ {[%emt 0:00:15]} 73. Ke6 {[%emt 0:00:08]} Nd8+ {[%emt 0:00:06]} 74. Kf5 {[%emt 0:00:09]} Kf7 {[%emt 0:00:44]} 75. Nc4 {[%emt 0:01:09]} a4 {[%emt 0:00:22]} 76. Nd6+ {[%emt 0:00:04]} Kf8 {[%emt 0:00:10] Hoping for ...a3.} 77. Nc4 {[%emt 0:00:03]} Nc6 {[%emt 0:00:32]} 78. Kg5 {[%emt 0:00:53]} Nd4 {[%emt 0:01:33]} ({Of course not} 78... Kf7 79. Nd6+ Ke6 80. Nb5 $17) 79. h5 $1 {[%emt 0:01:30]} Kf7 {[%emt 0:00:58]} 80. Ne5+ {[%emt 0:00:29]} Ke6 {[%emt 0:00:48]} 81. Nc4 {[%emt 0:00:40]} Nf3+ {[%emt 0:04:48]} (81... Nb5 $5) 82. Kg4 {[%emt 0:00:22]} Ne1 {[%emt 0:02:23]} 83. Kg5 {[%emt 0:00:06]} Nd3 {[%emt 0:00:29]} (83... Nc2 $5) 84. Kh6 {[%emt 0:00:59]} Nf4 {[%emt 0:00:45]} 85. Kg5 $2 {[%emt 0:00:33][%mdl 8192]} (85. Kxh7 $11 Nxh5 86. f7) 85... Nd5 $19 {[%emt 0:00:34]} 86. f7 {[%emt 0:00:25]} Kxf7 {[%emt 0:00:06]} 87. Kh6 {[%emt 0:00:03]} Nf6 {[%emt 0:01:13]} 88. Ne5+ {[%emt 0:00:48]} Ke6 {[%emt 0:00:10]} 89. Nc4 {[%emt 0:00:03]} Kf5 {[%emt 0:00:34]} 90. Ne3+ {[%emt 0:00:39]} Ke4 {[%emt 0:04:11]} 91. Nc4 {[%emt 0:00:06] [#]} Kf4 $1 {[%emt 0:00:27]} 92. Na3 {[%emt 0:00:30]} Kg4 {[%emt 0:00:12]} 93. Nb5 {[%emt 0:01:15]} Nxh5 {[%emt 0:02:27]} 94. Kxh7 {[%emt 0:00:02]} Kf5 {[%emt 0:00:17]} 95. Na3 {[%emt 0:00:41]} Nf4 {[%emt 0:00:48]} 96. Kg7 {[%emt 0:00:14]} Ke6 {[%emt 0:00:28]} (96... Ke4 $142 97. Kf6 Kd4 98. Kg5 Ne2 99. Kg4 Kc5 100. Kf3 Kb4 101. Nc2+ Kb3 102. Ne1 Nc1 103. Ke4 a3 104. Nf3 a2 105. Nd4+ Kc4 106. Nc2 Kc3 107. Nd4 a1=Q 108. Nb5+ Kd2 109. Nd6 Qg7 110. Nc4+ Kc3 111. Ne5 Qg5 112. Nf3 Qg4+ 113. Kd5 Qxf3+ 114. Ke5 Qf7 115. Kd6 Nd3 116. Kc6 Qe7 117. Kb5 Qb7+ 118. Ka5 Nb4 119. Ka4 Qa6#) 97. Nb1 {[%emt 0:00:13]} Ne2 {[%emt 0:00:38] Black mates.} 98. Na3 {[%emt 0:01:23]} Kd5 {[%emt 0:01:08]} 99. Kf6 {[%emt 0:00:02]} Kc5 {[%emt 0:00:12]} 100. Ke5 {[%emt 0:00:52]} Kb4 {[%emt 0:00:18]} 101. Nb1 {[%emt 0:00:45]} Nc3 {[%emt 0:00:56]} 102. Nd2 {[%emt 0:00:03]} a3 {[%emt 0:00:10]} 103. Nf3 {[%emt 0:00:35]} Nb5 {[%emt 0:00:47]} 104. Ne1 {[%emt 0:00:10]} Kc3 {[%emt 0:00:12] Black used his chance.   Weighted Error Value: White=0.28 (precise) /Black=0.43} 0-1